[Event "FIDE Grand Swiss 2023"]
[Site "Villa Marina, Douglas, Isle of Man"]
[Date "2023.10.27"]
[Round "3.24"]
[White "Duda, Jan-Krzysztof"]
[Black "Murzin, Volodar"]
[Result "1-0"]
[WhiteElo "2726"]
[BlackElo "2633"]
[EventDate "2023.10.25"]
[ECO "D35"]
[PlyCount "133"]
[BlackFideId "44155573"]
[TimeControl "40/100 + 20/50 + 15 + 30s/move"]
[WhiteFideId "1170546"]

1.c4 {[%clk 01:40:56] [%emt 00:00:02]} 1...e6 {[%clk 01:40:49] [%emt 00:00:12]} 
2.Nc3 {[%clk 01:41:14] [%emt 00:00:12]} 2...d5 {[%clk 01:41:12] [%emt 00:00:07]} 
3.d4 {[%clk 01:41:38] [%emt 00:00:06]} 3...Nf6 {[%clk 01:41:26] [%emt 00:00:16]} 
4.cxd5 {[%clk 01:41:46] [%emt 00:00:23]} 4...exd5 {[%clk 01:41:51] [%emt
00:00:05]} 5.Bg5 {[%clk 01:42:10] [%emt 00:00:05]} 5...c6 {[%clk 01:42:17] [%emt
00:00:05]} 6.e3 {[%clk 01:42:34] [%emt 00:00:05]} 6...h6 {[%clk 01:42:39] [%emt
00:00:08]} 7.Bh4 {[%clk 01:42:59] [%emt 00:00:05]} 7...Be7 {[%clk 01:42:47]
[%emt 00:00:23]} 8.Bd3 {[%clk 01:43:15] [%emt 00:00:13]} 8...O-O {[%clk
01:43:00] [%emt 00:00:16]} 9.Bg3 {[%clk 01:41:59] [%emt 00:01:46]} 9...Re8 
{[%clk 01:43:06] [%emt 00:00:25]} 10.Nf3 {[%clk 01:40:55] [%emt 00:01:35]} 
10...Nh5 {[%clk 01:42:59] [%emt 00:00:36]} 11.Be5 {[%clk 01:39:59] [%emt
00:01:25]} 11...Nd7 {[%clk 01:42:53] [%emt 00:00:37]} 12.h3 {[%clk 01:37:28]
[%emt 00:03:01]} 12...Nhf6 {[%clk 01:33:31] [%emt 00:09:51]} 13.Bh2 {[%clk
01:33:54] [%emt 00:04:05]} 13...Bb4 {[%clk 01:31:06] [%emt 00:02:56]} 14.Qc2 
{[%clk 01:30:45] [%emt 00:03:39]} 14...Qe7 {[%clk 01:23:59] [%emt 00:07:37]} 
15.O-O {[%clk 01:27:28] [%emt 00:03:46]} 15...Bd6 {[%clk 01:23:42] [%emt
00:00:46]} 16.Bxd6 {[%clk 01:27:21] [%emt 00:00:38]} 16...Qxd6 {[%clk 01:24:10]
[%emt 00:00:02]} 17.Rab1 {[%clk 01:27:42] [%emt 00:00:09]} 17...a6 {[%clk
01:11:58] [%emt 00:12:42]} 18.b4 {[%clk 01:21:35] [%emt 00:06:38]} 18...Nf8 
{[%clk 01:03:56] [%emt 00:08:31]} 19.Na4 {[%clk 01:14:29] [%emt 00:07:36]} 
19...Qe7 {[%clk 00:47:50] [%emt 00:16:36]} 20.Nc5 {[%clk 01:12:20] [%emt
00:02:39]} 20...N8d7 {[%clk 00:43:58] [%emt 00:04:22]} 21.a4 {[%clk 01:09:49]
[%emt 00:03:01]} 21...Ne4 {[%clk 00:42:42] [%emt 00:01:46]} 22.Nxd7 {[%clk
00:55:35] [%emt 00:14:44]} 22...Bxd7 {[%clk 00:42:45] [%emt 00:00:27]} 23.Bxe4 
{[%clk 00:55:59] [%emt 00:00:06]} 23...dxe4 {[%clk 00:36:33] [%emt 00:06:42]} 
24.Ne5 {[%clk 00:53:42] [%emt 00:02:47]} 24...Bf5 {[%clk 00:29:51] [%emt
00:07:12]} 25.f4 {[%clk 00:52:58] [%emt 00:01:13]} 25...f6 {[%clk 00:24:51]
[%emt 00:05:31]} 26.Nc4 {[%clk 00:52:49] [%emt 00:00:39]} 26...Be6 {[%clk
00:24:38] [%emt 00:00:43]} 27.Nb6 {[%clk 00:51:15] [%emt 00:02:04]} 27...Rad8 
{[%clk 00:24:17] [%emt 00:00:51]} 28.f5 {[%clk 00:51:23] [%emt 00:00:21]} 
28...Bf7 {[%clk 00:21:41] [%emt 00:03:07]} 29.Qc5 {[%clk 00:46:31] [%emt
00:05:22]} 29...Rd6 {[%clk 00:19:48] [%emt 00:02:23]} 30.Rf4 {[%clk 00:46:34]
[%emt 00:00:28]} 30...Qd8 {[%clk 00:18:06] [%emt 00:02:12]} 31.Rb2 {[%clk
00:46:12] [%emt 00:00:52]} 31...Kh8 {[%clk 00:16:39] [%emt 00:01:57]} 32.Rbf2 
{[%clk 00:45:07] [%emt 00:01:35]} 32...Bb3 {[%clk 00:15:01] [%emt 00:02:08]} 
33.Rg4 {[%clk 00:43:05] [%emt 00:02:32]} 33...Bd1 {[%clk 00:14:17] [%emt
00:01:14]} 34.Rh4 {[%clk 00:42:50] [%emt 00:00:45]} 34...Bb3 {[%clk 00:14:38]
[%emt 00:00:10]} 35.a5 {[%clk 00:41:03] [%emt 00:02:17]} 35...Bf7 {[%clk
00:13:42] [%emt 00:01:25]} 36.Rff4 {[%clk 00:40:54] [%emt 00:00:39]} 36...Bd5 
{[%clk 00:12:08] [%emt 00:02:05]} 37.Rf2 {[%clk 00:37:29] [%emt 00:03:54]} 
37...Bf7 {[%clk 00:12:02] [%emt 00:00:36]} 38.Rhf4 {[%clk 00:37:43] [%emt
00:00:15]} 38...Bb3 {[%clk 00:11:42] [%emt 00:00:51]} 39.Rb2 {[%clk 00:37:18]
[%emt 00:00:55]} 39...Bf7 {[%clk 00:11:26] [%emt 00:00:45]} 40.Kf1 {[%clk
00:37:42] [%emt 00:00:06]} 40...Qb8 {[%clk 00:06:50] [%emt 00:05:07]} 41.Ke1 
{[%clk 00:36:54] [%emt 00:01:18]} 41...Qc7 {[%clk 00:05:14] [%emt 00:02:06]} 
42.Rd2 {[%clk 00:36:13] [%emt 00:01:10]} 42...Bh5 {[%clk 00:48:36] [%emt
00:07:08]} 43.g4 {[%clk 01:20:11] [%emt 00:06:33]} 43...Bf7 {[%clk 00:48:42]
[%emt 00:00:24]} 44.Kd1 {[%clk 01:20:36] [%emt 00:00:05]} 44...Rdd8 {[%clk
00:47:56] [%emt 00:01:16]} 45.Kc1 {[%clk 01:19:49] [%emt 00:01:17]} 45...Qb8 
{[%clk 00:47:35] [%emt 00:00:52]} 46.h4 {[%clk 01:17:53] [%emt 00:02:25]} 
46...Qc7 {[%clk 00:46:33] [%emt 00:01:32]} 47.Rg2 {[%clk 01:15:26] [%emt
00:02:57]} 47...Kh7 {[%clk 00:44:56] [%emt 00:02:07]} 48.Kb2 {[%clk 01:13:12]
[%emt 00:02:44]} 48...Kh8 {[%clk 00:44:50] [%emt 00:00:36]} 49.Rf1 {[%clk
01:06:32] [%emt 00:07:09]} 49...Rg8 {[%clk 00:40:36] [%emt 00:04:45]} 50.Ka3 
{[%clk 01:05:19] [%emt 00:01:43]} 50...Rge8 {[%clk 00:37:35] [%emt 00:03:32]} 
51.Rc1 {[%clk 01:00:30] [%emt 00:05:18]} 51...Kh7 {[%clk 00:24:49] [%emt
00:13:17]} 52.Na4 {[%clk 00:54:03] [%emt 00:06:56]} 52...Rd7 {[%clk 00:19:49]
[%emt 00:05:30]} 53.Nc3 {[%clk 00:51:42] [%emt 00:02:51]} 53...Kh8 {[%clk
00:16:40] [%emt 00:03:38]} 54.g5 {[%clk 00:44:36] [%emt 00:07:37]} 54...Qd8 
{[%clk 00:15:02] [%emt 00:02:08]} 55.gxh6 {[%clk 00:36:50] [%emt 00:08:16]} 
55...gxh6 {[%clk 00:15:23] [%emt 00:00:09]} 56.h5 {[%clk 00:35:36] [%emt
00:01:44]} 56...Rg8 {[%clk 00:08:56] [%emt 00:06:58]} 57.Rg6 {[%clk 00:34:34]
[%emt 00:01:31]} 57...Bxg6 {[%clk 00:09:01] [%emt 00:00:25]} 58.hxg6 {[%clk
00:34:00] [%emt 00:01:03]} 58...Re8 {[%clk 00:08:51] [%emt 00:00:40]} 59.Qc4 
{[%clk 00:29:39] [%emt 00:04:52]} 59...Ree7 {[%clk 00:05:43] [%emt 00:03:38]} 
60.Rh1 {[%clk 00:28:10] [%emt 00:01:58]} 60...Kg7 {[%clk 00:05:52] [%emt
00:00:22]} 61.Qf1 {[%clk 00:25:45] [%emt 00:02:54]} 61...c5 {[%clk 00:04:47]
[%emt 00:01:35]} 62.Qf4 {[%clk 00:19:11] [%emt 00:07:04]} 62...cxb4+ {[%clk
00:05:08] [%emt 00:00:09]} 63.Kxb4 {[%clk 00:19:34] [%emt 00:00:07]} 63...Qh8 
{[%clk 00:05:31] [%emt 00:00:07]} 64.Ne2 {[%clk 00:14:23] [%emt 00:05:41]} 
64...h5 {[%clk 00:04:13] [%emt 00:01:49]} 65.Ng3 {[%clk 00:14:08] [%emt
00:00:45]} 65...Qf8 {[%clk 00:03:26] [%emt 00:01:17]} 66.Nxh5+ {[%clk 00:14:20]
[%emt 00:00:18]} 66...Kg8 {[%clk 00:03:45] [%emt 00:00:11]} 67.Nxf6+ {[%clk
00:14:45] [%emt 00:00:05]} 1-0

[Event "FIDE Grand Swiss 2023"]
[Site "Villa Marina, Douglas, Isle of Man"]
[Date "2023.10.27"]
[Round "3.25"]
[White "Keymer, Vincent"]
[Black "Idani, Pouya"]
[Result "1-0"]
[WhiteElo "2717"]
[BlackElo "2633"]
[EventDate "2023.10.25"]
[ECO "D32"]
[PlyCount "75"]
[BlackFideId "12510130"]
[TimeControl "40/100 + 20/50 + 15 + 30s/move"]
[WhiteFideId "12940690"]

1.c4 {[%clk 01:40:57] [%emt 00:00:02]} 1...e6 {[%clk 01:40:55] [%emt 00:00:05]} 
2.Nc3 {[%clk 01:41:24] [%emt 00:00:04]} 2...d5 {[%clk 01:41:21] [%emt 00:00:03]} 
3.d4 {[%clk 01:41:50] [%emt 00:00:04]} 3...c5 {[%clk 01:41:47] [%emt 00:00:03]} 
4.cxd5 {[%clk 01:41:30] [%emt 00:00:52]} 4...exd5 {[%clk 01:42:11] [%emt
00:00:05]} 5.Nf3 {[%clk 01:40:36] [%emt 00:01:25]} 5...Nf6 {[%clk 01:42:36]
[%emt 00:00:04]} 6.e3 {[%clk 01:33:34] [%emt 00:07:32]} 6...a6 {[%clk 01:42:25]
[%emt 00:00:41]} 7.Bd3 {[%clk 01:30:26] [%emt 00:03:38]} 7...Nc6 {[%clk
01:33:37] [%emt 00:09:18]} 8.O-O {[%clk 01:28:53] [%emt 00:02:03]} 8...Bg4 
{[%clk 01:29:07] [%emt 00:05:00]} 9.h3 {[%clk 01:24:31] [%emt 00:04:52]} 
9...Bh5 {[%clk 01:27:20] [%emt 00:02:17]} 10.Be2 {[%clk 01:21:58] [%emt
00:03:03]} 10...c4 {[%clk 01:13:58] [%emt 00:13:52]} 11.Ne5 {[%clk 01:12:24]
[%emt 00:10:04]} 11...Bxe2 {[%clk 01:08:27] [%emt 00:06:01]} 12.Qxe2 {[%clk
01:12:34] [%emt 00:00:19]} 12...Bb4 {[%clk 01:05:17] [%emt 00:03:41]} 13.Nxc6 
{[%clk 01:00:20] [%emt 00:12:45]} 13...bxc6 {[%clk 01:05:42] [%emt 00:00:04]} 
14.Bd2 {[%clk 00:57:59] [%emt 00:02:50]} 14...O-O {[%clk 01:01:00] [%emt
00:05:12]} 15.b3 {[%clk 00:56:55] [%emt 00:01:35]} 15...cxb3 {[%clk 00:57:29]
[%emt 00:04:01]} 16.axb3 {[%clk 00:57:18] [%emt 00:00:07]} 16...Bxc3 {[%clk
00:54:47] [%emt 00:03:12]} 17.Bxc3 {[%clk 00:57:30] [%emt 00:00:18]} 17...Qb6 
{[%clk 00:55:13] [%emt 00:00:04]} 18.Qc2 {[%clk 00:53:58] [%emt 00:04:02]} 
18...Rfc8 {[%clk 00:48:48] [%emt 00:06:54]} 19.Rfc1 {[%clk 00:53:49] [%emt
00:00:39]} 19...Ne4 {[%clk 00:43:48] [%emt 00:05:30]} 20.Be1 {[%clk 00:53:34]
[%emt 00:00:45]} 20...h6 {[%clk 00:41:25] [%emt 00:02:53]} 21.Ra5 {[%clk
00:49:45] [%emt 00:04:20]} 21...Rab8 {[%clk 00:35:35] [%emt 00:06:20]} 22.b4 
{[%clk 00:42:37] [%emt 00:07:38]} 22...Ra8 {[%clk 00:34:57] [%emt 00:01:07]} 
23.Qa4 {[%clk 00:40:11] [%emt 00:02:56]} 23...Nd6 {[%clk 00:29:24] [%emt
00:06:04]} 24.Ra1 {[%clk 00:39:35] [%emt 00:01:06]} 24...Nb5 {[%clk 00:29:48]
[%emt 00:00:05]} 25.Rxa6 {[%clk 00:38:55] [%emt 00:01:11]} 25...Rxa6 {[%clk
00:30:14] [%emt 00:00:04]} 26.Qxa6 {[%clk 00:39:22] [%emt 00:00:03]} 26...Qc7 
{[%clk 00:29:56] [%emt 00:00:47]} 27.Qa2 {[%clk 00:37:31] [%emt 00:02:21]} 
27...Qd7 {[%clk 00:29:51] [%emt 00:00:35]} 28.Qc2 {[%clk 00:31:08] [%emt
00:06:52]} 28...Re8 {[%clk 00:28:08] [%emt 00:02:13]} 29.Ra6 {[%clk 00:28:39]
[%emt 00:03:00]} 29...Nxd4 {[%clk 00:10:52] [%emt 00:17:47]} 30.Qc5 {[%clk
00:26:23] [%emt 00:02:46]} 30...Qc8 {[%clk 00:07:54] [%emt 00:03:28]} 31.b5 
{[%clk 00:21:29] [%emt 00:05:23]} 31...Re4 {[%clk 00:06:01] [%emt 00:02:23]} 
32.Kf1 {[%clk 00:16:21] [%emt 00:05:38]} 32...Qb8 {[%clk 00:05:07] [%emt
00:01:24]} 33.b6 {[%clk 00:10:18] [%emt 00:06:33]} 33...Qh2 {[%clk 00:03:51]
[%emt 00:01:46]} 34.Ra8+ {[%clk 00:10:18] [%emt 00:00:31]} 34...Kh7 {[%clk
00:04:16] [%emt 00:00:04]} 35.Qxd4 {[%clk 00:09:40] [%emt 00:01:08]} 35...Qh1+ 
{[%clk 00:02:30] [%emt 00:02:15]} 36.Ke2 {[%clk 00:10:07] [%emt 00:00:04]} 
36...Rxd4 {[%clk 00:02:54] [%emt 00:00:06]} 37.exd4 {[%clk 00:08:42] [%emt
00:01:55]} 37...Qxg2 {[%clk 00:03:17] [%emt 00:00:06]} 38.Re8 {[%clk 00:08:51]
[%emt 00:00:22]} 1-0

[Event "FIDE Grand Swiss 2023"]
[Site "Villa Marina, Douglas, Isle of Man"]
[Date "2023.10.27"]
[Round "3.26"]
[White "Kollars, Dmitrij"]
[Black "Vidit, Santosh Gujrathi"]
[Result "0-1"]
[WhiteElo "2633"]
[BlackElo "2716"]
[EventDate "2023.10.25"]
[ECO "B22"]
[PlyCount "112"]
[BlackFideId "5029465"]
[TimeControl "40/100 + 20/50 + 15 + 30s/move"]
[WhiteFideId "12909572"]

1.e4 {[%clk 01:40:54] [%emt 00:00:05]} 1...c5 {[%clk 01:40:07] [%emt 00:00:46]} 
2.c3 {[%clk 01:41:08] [%emt 00:00:25]} 2...d5 {[%clk 01:29:13] [%emt 00:11:24]} 
3.exd5 {[%clk 01:41:23] [%emt 00:00:14]} 3...Qxd5 {[%clk 01:29:35] [%emt
00:00:08]} 4.d4 {[%clk 01:41:15] [%emt 00:00:37]} 4...g6 {[%clk 01:29:42] [%emt
00:00:24]} 5.Nf3 {[%clk 01:41:13] [%emt 00:00:33]} 5...Bg7 {[%clk 01:29:47]
[%emt 00:00:24]} 6.Nbd2 {[%clk 01:41:06] [%emt 00:00:37]} 6...cxd4 {[%clk
01:25:22] [%emt 00:04:56]} 7.Bc4 {[%clk 01:40:41] [%emt 00:00:55]} 7...Qc5 
{[%clk 01:24:37] [%emt 00:01:15]} 8.cxd4 {[%clk 01:33:15] [%emt 00:07:55]} 
8...Qc7 {[%clk 01:21:10] [%emt 00:03:56]} 9.O-O {[%clk 01:32:06] [%emt
00:01:41]} 9...Nf6 {[%clk 00:58:44] [%emt 00:22:56]} 10.Ne5 {[%clk 01:08:06]
[%emt 00:24:29]} 10...O-O {[%clk 00:58:49] [%emt 00:00:25]} 11.Ndf3 {[%clk
01:08:18] [%emt 00:00:17]} 11...Nc6 {[%clk 00:58:26] [%emt 00:00:54]} 12.Nxc6 
{[%clk 00:53:41] [%emt 00:15:07]} 12...bxc6 {[%clk 00:58:12] [%emt 00:00:44]} 
13.Re1 {[%clk 00:51:51] [%emt 00:02:21]} 13...Bg4 {[%clk 00:46:42] [%emt
00:11:59]} 14.h3 {[%clk 00:49:17] [%emt 00:03:04]} 14...Bxf3 {[%clk 00:46:59]
[%emt 00:00:13]} 15.Qxf3 {[%clk 00:49:43] [%emt 00:00:04]} 15...Rad8 {[%clk
00:43:01] [%emt 00:04:28]} 16.Bf4 {[%clk 00:44:35] [%emt 00:05:39]} 16...Qb7 
{[%clk 00:43:24] [%emt 00:00:06]} 17.Be5 {[%clk 00:42:31] [%emt 00:02:34]} 
17...Nd5 {[%clk 00:43:31] [%emt 00:00:24]} 18.b3 {[%clk 00:41:56] [%emt
00:01:04]} 18...e6 {[%clk 00:40:30] [%emt 00:03:31]} 19.Rac1 {[%clk 00:40:47]
[%emt 00:01:39]} 19...Ne7 {[%clk 00:34:12] [%emt 00:06:48]} 20.Bd3 {[%clk
00:33:19] [%emt 00:07:59]} 20...Qb4 {[%clk 00:28:51] [%emt 00:05:50]} 21.Re2 
{[%clk 00:30:51] [%emt 00:02:58]} 21...Bxe5 {[%clk 00:28:01] [%emt 00:01:20]} 
22.Rc4 {[%clk 00:24:32] [%emt 00:06:49]} 22...Qb6 {[%clk 00:23:43] [%emt
00:04:48]} 23.dxe5 {[%clk 00:24:53] [%emt 00:00:10]} 23...Rd4 {[%clk 00:23:49]
[%emt 00:00:23]} 24.Re4 {[%clk 00:19:26] [%emt 00:05:56]} 24...Rfd8 {[%clk
00:21:55] [%emt 00:02:25]} 25.Rcxd4 {[%clk 00:15:38] [%emt 00:04:19]} 25...Rxd4 
{[%clk 00:22:22] [%emt 00:00:02]} 26.g3 {[%clk 00:15:19] [%emt 00:00:49]} 
26...Qd8 {[%clk 00:19:09] [%emt 00:03:43]} 27.Re3 {[%clk 00:10:58] [%emt
00:04:51]} 27...Nd5 {[%clk 00:16:54] [%emt 00:02:45]} 28.Re4 {[%clk 00:09:58]
[%emt 00:01:29]} 28...Nc3 {[%clk 00:15:04] [%emt 00:02:21]} 29.Rxd4 {[%clk
00:09:42] [%emt 00:00:47]} 29...Qxd4 {[%clk 00:15:32] [%emt 00:00:01]} 30.Bf1 
{[%clk 00:09:55] [%emt 00:00:17]} 30...c5 {[%clk 00:09:16] [%emt 00:06:47]} 
31.a4 {[%clk 00:09:38] [%emt 00:00:47]} 31...Nd5 {[%clk 00:06:02] [%emt
00:03:43]} 32.Qe2 {[%clk 00:09:50] [%emt 00:00:18]} 32...Nb4 {[%clk 00:06:14]
[%emt 00:00:18]} 33.Qf3 {[%clk 00:09:04] [%emt 00:01:16]} 33...Nd5 {[%clk
00:05:16] [%emt 00:01:28]} 34.Qe2 {[%clk 00:09:28] [%emt 00:00:06]} 34...Nc3 
{[%clk 00:05:03] [%emt 00:00:43]} 35.Qf3 {[%clk 00:09:27] [%emt 00:00:31]} 
35...h5 {[%clk 00:04:52] [%emt 00:00:41]} 36.h4 {[%clk 00:09:11] [%emt
00:00:47]} 36...Nd5 {[%clk 00:03:27] [%emt 00:01:54]} 37.Qe2 {[%clk 00:09:12]
[%emt 00:00:29]} 37...Ne7 {[%clk 00:01:03] [%emt 00:02:55]} 38.Qf3 {[%clk
00:06:40] [%emt 00:03:02]} 38...Nf5 {[%clk 00:00:42] [%emt 00:00:50]} 39.Bd3 
{[%clk 00:06:12] [%emt 00:00:58]} 39...Nh6 {[%clk 00:00:42] [%emt 00:00:31]} 
40.Qe4 {[%clk 00:02:23] [%emt 00:04:19]} 40...Qc3 {[%clk 00:00:47] [%emt
00:00:25]} 41.Be2 {[%clk 00:47:21] [%emt 00:05:31]} 41...Qxb3 {[%clk 00:36:12]
[%emt 00:15:05]} 42.Qa8+ {[%clk 00:34:54] [%emt 00:12:58]} 42...Kg7 {[%clk
00:36:32] [%emt 00:00:10]} 43.Qxa7 {[%clk 00:34:33] [%emt 00:00:51]} 43...c4 
{[%clk 00:36:52] [%emt 00:00:10]} 44.Qd4 {[%clk 00:32:31] [%emt 00:02:31]} 
44...c3 {[%clk 00:34:28] [%emt 00:02:54]} 45.Qd3 {[%clk 00:32:23] [%emt
00:00:38]} 45...Qb2 {[%clk 00:23:37] [%emt 00:11:21]} 46.Bd1 {[%clk 00:32:39]
[%emt 00:00:14]} 46...Ng4 {[%clk 00:23:42] [%emt 00:00:25]} 47.Bc2 {[%clk
00:28:15] [%emt 00:04:55]} 47...Qb6 {[%clk 00:23:34] [%emt 00:00:37]} 48.Qe2 
{[%clk 00:27:15] [%emt 00:01:30]} 48...Qc5 {[%clk 00:23:45] [%emt 00:00:18]} 
49.Kg2 {[%clk 00:24:59] [%emt 00:02:47]} 49...Nxe5 {[%clk 00:20:28] [%emt
00:03:47]} 50.Qb5 {[%clk 00:20:39] [%emt 00:04:48]} 50...Qd4 {[%clk 00:19:09]
[%emt 00:01:50]} 51.a5 {[%clk 00:19:57] [%emt 00:01:13]} 51...Ng4 {[%clk
00:19:23] [%emt 00:00:15]} 52.Qb6 {[%clk 00:19:39] [%emt 00:00:48]} 52...Qd2 
{[%clk 00:18:32] [%emt 00:01:22]} 53.Be4 {[%clk 00:16:26] [%emt 00:03:44]} 
53...c2 {[%clk 00:15:04] [%emt 00:03:57]} 54.Bxc2 {[%clk 00:16:43] [%emt
00:00:12]} 54...Qxc2 {[%clk 00:15:28] [%emt 00:00:07]} 55.a6 {[%clk 00:16:52]
[%emt 00:00:21]} 55...Nxf2 {[%clk 00:14:25] [%emt 00:01:33]} 56.Qd4+ {[%clk
00:16:43] [%emt 00:00:40]} 56...e5 {[%clk 00:08:57] [%emt 00:05:57]} 0-1

[Event "FIDE Grand Swiss 2023"]
[Site "Villa Marina, Douglas, Isle of Man"]
[Date "2023.10.27"]
[Round "3.27"]
[White "Svane, Frederik"]
[Black "Artemiev, Vladislav"]
[Result "0-1"]
[WhiteElo "2626"]
[BlackElo "2697"]
[EventDate "2023.10.25"]
[ECO "B90"]
[PlyCount "104"]
[BlackFideId "24101605"]
[TimeControl "40/100 + 20/50 + 15 + 30s/move"]
[WhiteFideId "12923044"]

1.e4 {[%clk 01:40:56] [%emt 00:00:04]} 1...c5 {[%clk 01:40:35] [%emt 00:00:26]} 
2.Nf3 {[%clk 01:41:20] [%emt 00:00:05]} 2...d6 {[%clk 01:40:40] [%emt 00:00:25]} 
3.d4 {[%clk 01:41:46] [%emt 00:00:05]} 3...cxd4 {[%clk 01:40:33] [%emt
00:00:37]} 4.Nxd4 {[%clk 01:42:10] [%emt 00:00:05]} 4...Nf6 {[%clk 01:40:31]
[%emt 00:00:32]} 5.Nc3 {[%clk 01:42:36] [%emt 00:00:04]} 5...a6 {[%clk 01:40:01]
[%emt 00:01:01]} 6.Bd3 {[%clk 01:43:02] [%emt 00:00:04]} 6...Bd7 {[%clk
01:19:34] [%emt 00:20:56]} 7.f4 {[%clk 01:33:10] [%emt 00:10:23]} 7...Nc6 
{[%clk 01:12:55] [%emt 00:07:09]} 8.Nxc6 {[%clk 01:21:30] [%emt 00:12:11]} 
8...Bxc6 {[%clk 01:10:43] [%emt 00:02:40]} 9.e5 {[%clk 01:08:41] [%emt
00:13:19]} 9...Nd5 {[%clk 01:07:01] [%emt 00:04:13]} 10.e6 {[%clk 01:05:19]
[%emt 00:03:52]} 10...fxe6 {[%clk 01:05:40] [%emt 00:01:51]} 11.Nxd5 {[%clk
01:00:32] [%emt 00:05:17]} 11...Bxd5 {[%clk 01:05:40] [%emt 00:00:30]} 12.Qe2 
{[%clk 01:00:54] [%emt 00:00:08]} 12...g6 {[%clk 01:02:08] [%emt 00:04:01]} 
13.c4 {[%clk 00:49:44] [%emt 00:11:41]} 13...Bc6 {[%clk 00:56:21] [%emt
00:06:18]} 14.Qxe6 {[%clk 00:47:34] [%emt 00:02:40]} 14...Qb6 {[%clk 00:39:44]
[%emt 00:17:06]} 15.Be4 {[%clk 00:33:55] [%emt 00:14:09]} 15...Bg7 {[%clk
00:31:57] [%emt 00:08:17]} 16.Rb1 {[%clk 00:29:53] [%emt 00:04:32]} 16...Bxe4 
{[%clk 00:23:06] [%emt 00:09:21]} 17.Qxe4 {[%clk 00:30:19] [%emt 00:00:04]} 
17...Rc8 {[%clk 00:19:45] [%emt 00:03:51]} 18.Bd2 {[%clk 00:18:32] [%emt
00:12:18]} 18...O-O {[%clk 00:16:56] [%emt 00:03:18]} 19.b3 {[%clk 00:15:31]
[%emt 00:03:31]} 19...e5 {[%clk 00:16:09] [%emt 00:01:17]} 20.Be3 {[%clk
00:11:45] [%emt 00:04:16]} 20...Qa5+ {[%clk 00:15:19] [%emt 00:01:20]} 21.Bd2 
{[%clk 00:12:05] [%emt 00:00:10]} 21...Qxa2 {[%clk 00:15:11] [%emt 00:00:39]} 
22.Qd5+ {[%clk 00:07:55] [%emt 00:04:39]} 22...Kh8 {[%clk 00:14:59] [%emt
00:00:43]} 23.O-O {[%clk 00:08:19] [%emt 00:00:06]} 23...exf4 {[%clk 00:12:45]
[%emt 00:02:44]} 24.Qd3 {[%clk 00:08:37] [%emt 00:00:12]} 24...Be5 {[%clk
00:04:26] [%emt 00:08:49]} 25.Rf2 {[%clk 00:08:33] [%emt 00:00:34]} 25...Qa3 
{[%clk 00:04:44] [%emt 00:00:12]} 26.Rbf1 {[%clk 00:08:26] [%emt 00:00:36]} 
26...Qc5 {[%clk 00:02:42] [%emt 00:02:32]} 27.Kh1 {[%clk 00:08:16] [%emt
00:00:40]} 27...Qd4 {[%clk 00:00:34] [%emt 00:02:39]} 28.Qxd4 {[%clk 00:07:35]
[%emt 00:01:11]} 28...Bxd4 {[%clk 00:01:00] [%emt 00:00:04]} 29.Rxf4 {[%clk
00:08:01] [%emt 00:00:04]} 29...Rxf4 {[%clk 00:01:25] [%emt 00:00:05]} 30.Rxf4 
{[%clk 00:03:39] [%emt 00:04:52]} 30...Bg7 {[%clk 00:01:04] [%emt 00:00:51]} 
31.Re4 {[%clk 00:02:12] [%emt 00:01:57]} 31...Be5 {[%clk 00:00:57] [%emt
00:00:37]} 32.g4 {[%clk 00:01:22] [%emt 00:01:20]} 32...Kg7 {[%clk 00:00:55]
[%emt 00:00:32]} 33.Kg2 {[%clk 00:01:44] [%emt 00:00:08]} 33...Kf6 {[%clk
00:00:48] [%emt 00:00:37]} 34.g5+ {[%clk 00:00:59] [%emt 00:01:14]} 34...Ke6 
{[%clk 00:00:34] [%emt 00:00:45]} 35.Rh4 {[%clk 00:01:25] [%emt 00:00:04]} 
35...d5 {[%clk 00:00:32] [%emt 00:00:32]} 36.cxd5+ {[%clk 00:00:34] [%emt
00:01:21]} 36...Kxd5 {[%clk 00:01:01] [%emt 00:00:01]} 37.Kf3 {[%clk 00:00:40]
[%emt 00:00:24]} 37...Rc7 {[%clk 00:00:53] [%emt 00:00:38]} 38.Ke2 {[%clk
00:00:39] [%emt 00:00:31]} 38...Ke6 {[%clk 00:00:40] [%emt 00:00:43]} 39.Kd3 
{[%clk 00:00:34] [%emt 00:00:35]} 39...Kf5 {[%clk 00:00:58] [%emt 00:00:12]} 
40.h3 {[%clk 00:00:35] [%emt 00:00:29]} 40...b5 {[%clk 00:00:39] [%emt
00:00:49]} 41.b4 {[%clk 00:47:06] [%emt 00:03:59]} 41...Re7 {[%clk 00:45:37]
[%emt 00:05:32]} 42.Be3 {[%clk 00:45:35] [%emt 00:02:01]} 42...Rd7+ {[%emt
00:02:40]} 43.Ke2 {[%clk 00:46:01]} 43...Bc3 {[%clk 00:36:30] [%emt 00:07:31]} 
44.Rf4+ {[%clk 00:46:12] [%emt 00:00:19]} 44...Ke5 {[%clk 00:30:54] [%emt
00:06:06]} 45.h4 {[%clk 00:39:34] [%emt 00:07:08]} 45...Bd2 {[%clk 00:16:38]
[%emt 00:14:45]} 46.Rf6 {[%clk 00:22:31] [%emt 00:17:34]} 46...Bxe3 {[%clk
00:09:54] [%emt 00:07:14]} 47.Kxe3 {[%clk 00:22:55] [%emt 00:00:06]} 47...Rd4 
{[%clk 00:10:19] [%emt 00:00:05]} 48.h5 {[%clk 00:23:20] [%emt 00:00:05]} 
48...gxh5 {[%clk 00:09:58] [%emt 00:00:51]} 49.Rxa6 {[%clk 00:22:25] [%emt
00:01:25]} 49...Rxb4 {[%clk 00:09:40] [%emt 00:00:48]} 50.Rh6 {[%clk 00:22:03]
[%emt 00:00:52]} 50...h4 {[%clk 00:09:26] [%emt 00:00:44]} 51.Rxh7 {[%clk
00:22:20] [%emt 00:00:12]} 51...Kf5 {[%clk 00:09:34] [%emt 00:00:22]} 52.Rg7 
{[%clk 00:20:47] [%emt 00:02:04]} 52...h3 {[%clk 00:07:58] [%emt 00:02:05]} 0-1